Cogmind - Beta 13 @@@ ROGUE MODE // 2024.06.09 @ 23:41:50 Player: Jelly Donuts Result: Destroyed by G-47 Trooper with Particle Gun Performance ------------- Evolutions (2) 1000 Regions Visited (4) 800 Robots Destroyed (45) 225 Value Destroyed (908) 908 Prototype IDs (5) 100 Alien Tech Used (0) 0 Bonus (-9) -9 TOTAL SCORE: 3024 Bonus ------- Friendly Fire -9 Cogmind --------- Core Integrity 0/550 Matter 284/300 Energy 160/160 System Corruption 0% Temperature Cool (9) Movement Core (100) Ox1 Location -8/Materials Parts ------- > --- POWER (1) -------- Light Nuclear Core > --- PROPULSION (2) --- (None) > --- UTILITY (5) ------ (None) > --- WEAPON (3) ------- Light Assault Rifle > --- INVENTORY (5) ---- Rainbow Chip Peak State ------------ > --- POWER ------------ Light Angular Momentum Engine > --- PROPULSION ------- Carbon-fiber Leg Myomer Leg > --- UTILITY ---------- Improved Terrain Scanner Targeting Computer ECM Suite Scrap Shield > --- WEAPON ----------- Heavy EM Shotgun Beamcaster Barrage Gun > --- INVENTORY -------- Rainbow Chip Grenade Launcher [Rating: 37] Favorites ----------- Power Ion Engine Engine Ion Engine Power Core Light Nuclear Core Propulsion Light Treads Treads Light Treads Leg Aluminum Leg Utility Scrap Shield Device Improved Terrain Scanner Storage Small Storage Unit Processor Signal Interpreter Protection Scrap Shield Weapon Grenade Launcher Energy Gun Beamcaster Ballistic Gun Barrage Gun Ballistic Cannon Light Cannon Launcher Grenade Launcher Special Weapon Mining Laser Slashing Weapon Scythe Special Melee Weapon Datajack Build | -11 -10 -10 -10 -8 ------- Run | Yrd Mat Min Sub Mat Slots Evolved 4 | . . . . 4 Power . | . . . . . Propulsion . | . . . . . Utility 3 | . . . . 3 Weapon 1 | . . . . 1 Parts Attached 55 | 8 18 7 8 14 Power 5 | 1 1 . 2 1 Engine 4 | 1 1 . 2 . Core 1 | . . . . 1 Reactor . | . . . . . Propulsion 8 | 2 2 2 2 . Treads 2 | . . 2 . . Leg 6 | 2 2 . 2 . Wheel . | . . . . . Hover . | . . . . . Flight . | . . . . . Utility 18 | 2 4 4 2 6 Device 11 | 1 3 2 . 5 Storage 1 | 1 . . . . Processor 2 | . 1 . . 1 Hackware . | . . . . . Protection 4 | . . 2 2 . Artifact . | . . . . . Weapon 24 | 3 11 1 2 7 Energy Gun 4 | 1 1 . 1 1 Energy Cannon . | . . . . . Ballistic Gun 8 | 2 3 1 1 1 Ballistic Cannon 1 | . 1 . . . Launcher 5 | . 2 . . 3 Special Weapon 2 | . 2 . . . Impact Weapon . | . . . . . Slashing Weapon 2 | . . . . 2 Piercing Weapon . | . . . . . Special Melee Weapon 2 | . 2 . . . Unidentified Prototypes 1 | . . . . 1 Parts Lost 16 | . 3 . 1 12 Power 1 | . . . . 1 Propulsion 2 | . . . . 2 Utility 7 | . 1 . 1 5 Weapon 6 | . 2 . . 4 Highest Loss Streak 11 | . 1 . 1 11 To Critical Strikes . | . . . . . Average Slot Usage (%) 90 | . 98 100 85 75 Engine 13 | . 14 14 14 6 Treads 12 | . . 13 25 . Leg 13 | . 28 14 2 14 Device 10 | . 22 8 . 21 Processor 4 | . 3 14 . 3 Protection 7 | . . 5 13 6 Energy Gun 2 | . 4 . 1 6 Ballistic Gun 9 | . 6 7 14 6 Ballistic Cannon 2 | . 6 6 . . Launcher 10 | . 7 14 12 4 Naked Turns . | . . . . . Heaviest Build 42 | 12 14 14 35 42 Greatest Support 40 | 20 20 40 40 40 Greatest Overweight (x) 3 | . . . 2 3 Average Overweight (x) . | . . . . . Largest Inventory Capacity 8 | 8 8 5 5 5 Average Capacity 5 | 7 5 5 5 5 Most Carried 5 | 3 4 5 5 4 Average Carried 2 | . 2 3 3 1 Final Capacity 8 | 8 5 5 5 5 Final Carried 5 | 1 3 4 5 1 Class Distribution -------------------- 55% | Mutant 38% | Scavenger-Mutant 5% | Scavenger-Bomber Dominant Class ---------------- Mutant | -10/Materials Scavenger-Mutant | -10/Mines Mutant | -10/Subcaves Scavenger-Bomber | -8/Materials Resources | -11 -10 -10 -10 -8 ----------- Run | Yrd Mat Min Sub Mat Matter Collected 1193 | 284 178 134 429 168 Remotely . | . . . . . Salvage Created 956 | 57 166 24 239 470 Parts 84 | 13 17 3 14 37 Haulers Intercepted 1 | . 1 . . . Recyclers Shooed 1 | . 1 . . . Parts Field Recycled . | . . . . . Retrieved Matter . | . . . . . Parts Self-Destructed 6 | . . . 6 . Prevented . | . . . . . Kills | -11 -10 -10 -10 -8 ------- Run | Yrd Mat Min Sub Mat Combat Hostiles Destroyed 33 | . 9 3 7 14 Melee 5 | . . . . 5 Guns 10 | . 1 . 3 6 Cannons 2 | . 2 . . . AOE 16 | . 6 3 4 3 Classes Destroyed 10 | 1 5 . 1 3 Worker 3 | . . . . 3 Tunneler 3 | 3 . . . . Hauler 1 | . 1 . . . Recycler 1 | . . . . 1 Operator 1 | . 1 . . . Watcher 3 | . 2 . . 1 Swarmer 17 | . 3 3 . 11 Grunt 8 | . 6 . . 2 Sentry 1 | . . . . 1 Subdweller 7 | . . . 7 . Best Kill Streak 8 | 3 4 3 4 8 Combat Bots Only 5 | . 3 3 4 5 Max Kills in Single Turn 4 | 1 3 3 1 4 Gunslinging . | . . . . . Exploded 3 | . 3 3 1 3 Melee 1 | . . . . 1 Uniques/NPCs Destroyed . | . . . . . Combat | -11 -10 -10 -10 -8 -------- Run | Yrd Mat Min Sub Mat Hostile Shots Fired 254 | . 28 1 50 175 Missed 74 | . 10 . 14 50 Damage Taken 2250 | . 230 8 804 1208 Core 730 | . 52 . 127 551 Absorbed by Shields 36 | . . . . 36 Core Remaining (%) 64 | 100 . . 28 . Volleys Fired 89 | 5 33 2 31 18 Largest 3 | 2 2 2 2 3 Hottest 140 | 60 140 65 103 133 Shots Fired 151 | 10 49 6 49 37 Gun 105 | 10 17 1 43 34 Cannon 16 | . 14 2 . . Launcher 24 | . 12 3 6 3 Special 6 | . 6 . . . Kinetic 84 | 5 28 3 31 17 Thermal 35 | . 6 . 12 17 Explosive 24 | . 12 3 6 3 Electromagnetic 8 | 5 3 . . . Robot Hit Streak 11 | 1 5 2 11 7 Robot Miss Streak 6 | 2 6 2 2 1 Penetration Max . | . . . . . Secondary Targets 1 | . . . . 1 Max Gunslinging Chain 1 | . . . . 1 Shots Hit Robots 94 | 4 18 2 38 32 Core Hits 64 | 3 18 5 18 20 Critical Kills . | . . . . . Critical Parts Destroyed 1 | . . . . 1 Critical Strikes 3 | . . . 1 2 Burn 2 | . . . 1 1 Destroy 1 | . . . . 1 Melee Attacks 25 | . 2 . . 23 Impact . | . . . . . Slashing 23 | . . . . 23 Piercing . | . . . . . Sneak Attacks 2 | . 1 . . 1 Combat Hostiles . | . . . . . Follow-up Attacks . | . . . . . Damage Inflicted 3388 | 40 902 167 1224 1055 Guns 1149 | 40 56 . 631 422 Cannons 165 | . 148 17 . . Explosions 1573 | . 602 150 593 228 Melee 405 | . . . . 405 Ramming . | . . . . . Kinetic 912 | 16 204 17 422 253 Thermal 474 | . 96 . 209 169 Explosive 1573 | . 602 150 593 228 Electromagnetic 24 | 24 . . . . Impact . | . . . . . Slashing 405 | . . . . 405 Piercing . | . . . . . Highest Corruption 1 | . 1 1 1 . Average Corruption 1 | . 1 1 1 . Corruption Purged . | . . . . . Corruption Blocked . | . . . . . Effects 19 | . 4 5 10 . Message Errors 5 | . 3 . 2 . Matter Fused 4 | . . 1 3 . Heat Flow Errors 3 | . 1 . 2 . Energy Discharges 4 | . . 2 2 . Data Loss (minor) 1 | . . . 1 . Misfires 2 | . . 2 . . Overload Shots . | . . . . . Overflow Damage 105 | . 41 . . 64 Projectiles 15 | . 15 . . . Explosions 38 | . 26 . . 12 Melee 52 | . . . . 52 Knockbacks . | . . . . . Impact . | . . . . . Kinetic . | . . . . . Secondary . | . . . . . Self-Inflicted Damage 41 | . 31 . . 10 Shots 2 | . 1 . . 1 Rammed . | . . . . . Targets Rammed . | . . . . . Kicked . | . . . . . Crushed . | . . . . . Highest Temperature 285 | 40 181 3 102 285 Average Temperature 54 | 20 36 2 26 97 Received Heat Transfer 484 | . 102 . 87 295 Siege Activations . | . . . . . Robots Corrupted . | . . . . . Combat Hostiles . | . . . . . Parts Fried . | . . . . . Impact Corruptions . | . . . . . Robots Melted . | . . . . . Combat Hostiles . | . . . . . Parts Melted 2 | . 1 . 1 . Heat Transferred 1014 | . 200 . 444 370 Parts Sabotaged . | . . . . . Parts Stolen . | . . . . . Parts Stripped . | . . . . . Power Chain Reactions . | . . . . . Alert | -11 -10 -10 -10 -8 ------- Run | Yrd Mat Min Sub Mat Peak Influence 317 | 15 180 133 . 317 Initial 11 | . 9 11 . . Average 75 | 5 67 71 . 109 Maximum Alert Level 1 | . . . . 1 Low Security (%) 94 | 100 100 100 . 75 Level 1 5 | . . . . 24 Level 2 . | . . . . . Level 3 . | . . . . . Level 4 . | . . . . . Level 5 . | . . . . . High Security . | . . . . . Max Security . | . . . . . Squads Dispatched 3 | . 2 . . 1 Investigation 2 | . 1 . . 1 Extermination . | . . . . . Reinforcement 1 | . 1 . . . Assault . | . . . . . Garrison . | . . . . . Intercept . | . . . . . Searches Triggered . | . . . . . Construction Impeded . | . . . . . Haulers Reinforced . | . . . . . Active Scanning Responses . | . . . . . Cargo Convoy Interrupts . | . . . . . Stealth | -11 -10 -10 -10 -8 --------- Run | Yrd Mat Min Sub Mat Distress Signals 4 | . . . . 4 Communications Jammed . | . . . . . Distress Signals . | . . . . . Times Spotted 65 | . 18 4 16 27 Peak Tracking Total 11 | . 4 3 6 11 Tactical Retreats 3 | . 1 . . 2 Traps | -11 -10 -10 -10 -8 ------- Run | Yrd Mat Min Sub Mat Traps Triggered 1 | . 1 . . . Indirectly . | . . . . . Trap Hack Attempts . | . . . . . Triggered . | . . . . . Disarmed . | . . . . . Reprogrammed . | . . . . . Reused . | . . . . . Traps Extracted . | . . . . . Installed . | . . . . . Triggered . | . . . . . Machines | -11 -10 -10 -10 -8 ---------- Run | Yrd Mat Min Sub Mat Machines Disabled 1 | . . 1 . . Max in Single Turn 1 | . . 1 . . Machines Repaired . | . . . . . Machines Dismantled . | . . . . . Machines Sabotaged . | . . . . . Overloaded Fab Kills . | . . . . . Hacking | -11 -10 -10 -10 -8 --------- Run | Yrd Mat Min Sub Mat Machines Accessed 11 | . 6 . 1 4 Terminals 6 | . 3 . . 3 Fabricators . | . . . . . Repair Stations 2 | . 1 . . 1 Recycling Units 2 | . 2 . . . Scanalyzers . | . . . . . Garrison Access . | . . . . . Total Hacks 31 | . 16 . 3 12 Successful 18 | . 8 . 3 7 Failed 13 | . 8 . . 5 Catastrophic 1 | . . . . 1 Database Lockouts . | . . . . . Manual 1 | . . . 1 . Terminals 19 | . 10 . . 9 Fabricators . | . . . . . Repair Stations 6 | . 3 . . 3 Recycling Units 3 | . 3 . . . Scanalyzers . | . . . . . Garrison Access . | . . . . . Terminal Hacks 15 | . 5 . 3 7 Record 5 | . . . 3 2 Robot Analysis 1 | . 1 . . . Prototype ID Bank 2 | . 1 . . 1 Emergency Access Points 1 | . . . . 1 Alert Level 3 | . 1 . . 2 Unreport Threat 1 | . 1 . . . Locate Traps 1 | . . . . 1 Zone Layout 1 | . 1 . . . Fabricator Hacks . | . . . . . Repair Station Hacks . | . . . . . Recycling Unit Hacks 3 | . 3 . . . Report Inventory 2 | . 2 . . . Retrieve Components 1 | . 1 . . . Scanalyzer . | . . . . . Garrison Access Hacks . | . . . . . Unauthorized Hacks . | . . . . . Terminals . | . . . . . Fabricators . | . . . . . Repair Stations . | . . . . . Recycling Units . | . . . . . Scanalyzers . | . . . . . Garrison Access . | . . . . . Data Cores Recovered . | . . . . . Used . | . . . . . Hacking Detections 9 | . 5 . . 4 Full Trace Events 2 | . 1 . . 1 Feedback Events . | . . . . . Feedback Blocked . | . . . . . Robot Schematics Acquired . | . . . . . Robots Built . | . . . . . Authchips . | . . . . . Time . | . . . . . Total Robot Build Rating . | . . . . . Part Schematics Acquired . | . . . . . Parts Built . | . . . . . Authchips . | . . . . . Time . | . . . . . Total Part Build Rating . | . . . . . Parts Repaired . | . . . . . Time . | . . . . . Parts Recycled . | . . . . . Recycled Matter . | . . . . . Retrieved Matter . | . . . . . Retrieved Components 2 | . 2 . . . Parts Scanalyzed . | . . . . . Part Schematics Acquired . | . . . . . Parts Damaged . | . . . . . Bothacking | -11 -10 -10 -10 -8 ------------ Run | Yrd Mat Min Sub Mat Used RIF Installer . | . . . . . Robots Hacked 2 | . 2 . . . Non-combat 1 | . 1 . . . Combat 1 | . 1 . . . Robot Hacks Applied 2 | . 2 . . . parse_system 1 | . 1 . . . check_alert 1 | . 1 . . . Relay Couplers Released . | . . . . . Fabnet Peak Effective % . | . . . . . Robots Rewired . | . . . . . Allies Hacked . | . . . . . Hacks Repelled . | . . . . . Allies | -11 -10 -10 -10 -8 -------- Run | Yrd Mat Min Sub Mat Total Allies . | . . . . . Largest Group . | . . . . . Highest-Rated Group . | . . . . . Highest-Rated Ally . | . . . . . Total Orders . | . . . . . Ally Attacks . | . . . . . Total Damage . | . . . . . Kills . | . . . . . Allies Corrupted . | . . . . . Allies Melted . | . . . . . Intel | -11 -10 -10 -10 -8 ------- Run | Yrd Mat Min Sub Mat Robot Analysis Total 1 | . 1 . . . Derelict Logs Recovered 2 | . . 1 1 . Drone Launches . | . . . . . Drone Recoveries . | . . . . . Exploration | -11 -10 -10 -10 -8 ------------- Run | Yrd Mat Min Sub Mat Turns Passed 3222 | 96 860 566 1270 430 Spaces Moved 1847 | 57 531 393 710 156 Core 17 | 8 . . . 9 Treads 806 | . . 171 635 . Legs 1024 | 49 531 222 75 147 Wheels . | . . . . . Hover . | . . . . . Flight . | . . . . . Fastest Speed 50 | 50 120 120 120 100 Average Speed 144 | 110 120 137 162 181 Slowest Speed 260 | 120 120 160 260 200 Overloaded Moves . | . . . . . Propulsion Burnouts . | . . . . . Robots Hopped . | . . . . . Cave-ins Triggered . | . . . . . Exploration Rate (%) 46 | 4 69 90 41 30 Regions Visited 4 Branch Regions 2 Pre-discovered Areas 1 | . . . 1 . Known Exits Taken 2 | . 1 1 . . Unknown Exits Taken 2 | 1 . . 1 . Scrap Searched 5 | . . 1 4 . Spaces Dug . | . . . . . Terrain Destroyed 135 | . 88 21 16 10 Melee . | . . . . . Projectile 2 | . 2 . . . AOE 133 | . 86 21 16 10 Terrain Rammed . | . . . . . Walls Destroyed . | . . . . . Machines Disabled . | . . . . . Actions | -11 -10 -10 -10 -8 --------- Run | Yrd Mat Min Sub Mat Total 2204 | 81 693 414 782 234 Wait 103 | . 83 4 2 14 Move 1843 | 56 530 392 709 156 Hop . | . . . . . Pick Up 51 | 10 16 5 13 7 Fast Attach . | . . . . . Attach 22 | 7 4 . 2 9 Detach 1 | . . . 1 . Swap 33 | 1 14 7 6 5 Drop 30 | 2 11 4 11 2 Fire 89 | 5 33 2 31 18 Melee 25 | . 2 . . 23 Ram . | . . . . . Kick . | . . . . . Crush . | . . . . . Escape Stasis . | . . . . . Rewire 1 | . . . 1 . Trap . | . . . . . Miscellaneous 6 | . . . 6 . Route ------- -11/Scrapyard -10/Materials (discovered 3 exits: *Mat x2 / *Min) -10/Mines (discovered 3 exits: *Mat x2 / *Sub) -10/Subcaves (discovered 2 exits: *Mat x2) -8/Materials History --------- Turn | Location | Event 18 | -11/Scrapyard | Discovered new exit (range 15) 97 | -11/Scrapyard | Entered Materials 303 | -10/Materials | Build established: Mutant 400 | -10/Materials | Discovered new exit (range 7) 523 | -10/Materials | Discovered new exit (range 15) 681 | -10/Materials | Discovered new exit (range 16) 753 | -10/Materials | Identified exit to Materials 956 | -10/Materials | Identified exit to Mines 957 | -10/Materials | Entered Mines 973 | -10/Mines | Met a Derelict bent on vengeance 1004 | -10/Mines | Identified exit to Subcaves 1010 | -10/Mines | Discovered exit to Materials (range 15) 1218 | -10/Mines | Joined a pair of Derelicts in attacking an 0b10 outpost 1268 | -10/Mines | Build established: Scavenger-Mutant 1317 | -10/Mines | Discovered exit to Materials (range 10) 1523 | -10/Mines | Entered Subcaves 1589 | -10/Subcaves | Ambushed by swarm of Subdwellers 1593 | -10/Subcaves | Ambushed by Subdwellers from Twisted Machinery 1598 | -10/Subcaves | Ambushed by angry Subdweller bent on revenge 1625 | -10/Subcaves | Core integrity fell below 50% 1934 | -10/Subcaves | Discovered new exit (range 12) 1961 | -10/Subcaves | Learned Materials interactive machine intel 2036 | -10/Subcaves | Learned location of Zion (-6) 2036 | -10/Subcaves | Met a Zionite searching for "candidates" 2183 | -10/Subcaves | Discovered new exit (range 5) 2184 | -10/Subcaves | Build established: Mutant 2375 | -10/Subcaves | Visited Clippyterm 2380 | -10/Subcaves | Learned Factory fabricator intel 2380 | -10/Subcaves | Learned Research machine intel 2693 | -10/Subcaves | A Subdweller sparked back to life 2693 | -10/Subcaves | A Subdweller sparked back to life 2693 | -10/Subcaves | A Subdweller sparked back to life 2752 | -10/Subcaves | Found Prototype Processor 2793 | -10/Subcaves | Entered Materials 2793 | -8/Materials | Evolved 4 slots: Utility x3, Weapon x1 2794 | -8/Materials | Loaded intel: 19 interactive machine locations 3187 | -8/Materials | Core integrity fell below 50% 3205 | -8/Materials | Core integrity fell below 20% 3215 | -8/Materials | Lost 11 parts (1p2n5u3w) 3223 | -8/Materials | Destroyed by G-47 Trooper with Particle Gun Last Messages --------------- K-01 Serf collects debris. R-06 Scavenger collects Lgt. Nuclear Core. R-06 Scavenger collects Lgt. Assault Rifle. Destroyed Flight Unit. R-06 Scavenger collects Particle Gun. K-01 Serf collects debris. S-10 Pest destroyed. Sneak attack on R-06 Scavenger. R-06 Scavenger destroyed. K-01 Serf collects debris. Acquired Lgt. Nuclear Core. K-01 Serf collects debris. M-13 Machinist repairs W-25 Informer. K-01 Serf collects debris. Scythe destroyed. K-01 Serf collects debris. Acquired Lgt. Assault Rifle. K-01 Serf collects debris. G-47 Trooper suffers critical hit (Destroy). Destroyed Aluminum Leg. Map ----- +----------------------------------------------------+ | ??????S""????????????????????????????????????????? | | ??????""?????????????????????????????????????????? | | ?????????????????????????????????????????????????? | | ?????????????????????????????????????????????????? | | ?????????????????????????????????????????????????? | | ?????????????????????????????????????????????????? | | ?????????????????????????????????????????????????? | | ?????????????????????????????????????????????????? | | ?????????????????????????????????????????????????? | | ?????????????????????????????????????????????????? | | ?????????????????????????????????????????????????? | | ??T????????????????????? ????????????????????????? | | ???????????????????????? ????????????????????????? | | ???????????????????????? ????????????????????????? | | ???????????????????????? ????????????????????????? | | ???????????????????????? ????????????????????????? | | ???????????????????????# ????????????????????????? | | ???????????????????????# ????????????????????????? | | ????????????????????? ?# #???????????????????????? | | ?????????#????##???????# #???????????????????????? | | ???????????##### ####### #??##???????????????????? | | ??????#???? #??#????????????????????? | | ????? ???? ####????????????????????? | | ?????????? #??##########????????? | | ???????? *!#??# ! #????????? | | ????#???? @ %####* """ #????????? | | ????#???? a *%*%%kk/% """ #????????? | | ?????? ?? g ####### """ !#????????? | | ???????#???############# #????## # #????? | | ???????????#?#??????#??# #??##?# / #????? | | ??#??? ???##??#???#####k ?????# " " # #????? | | ?????? ?????######## ??#?## "T" #???+????? | | ?#??????????# T # ###### """ #????????? | | ######+###### # #####[### # ######????????? | | # + + /% !%== * #????? | | # """ *### [ # m =![%= = #????? | | # """ = #?# # =%= % %* #????? | | # """ #?# # ! !%= #????? | | # """ " " #######+## ######## * = #????? | | + """ "T" #?#??## ## #??????# =! %% #????? | | # """ #?????# ## #??????# %= = #????? | | # ! #?#?#?# ## #??##??# #### #????? | | #####+######????# ## #??????# #####???? #????? | | #??????# ##+####???# #????????? ???""" | | #??????# # = #???# ###???????????""" | | #???#?## #""" #??## #?????????????"S? | | #??????# #"R #???# #??#??????????""" | | +##+######???#??# #""" /#???# #??????????????"" | | #??##????#??# # "" #???# #???????????????? | | #?##????????# # = ##??? ????????????????? | +----------------------------------------------------+ Best States ------------- Heat Dissipation 31 Energy Generation 18 Energy Capacity 250 Matter Stores 300 Matter Capacity 300 Sight Range 16 Robot Scan Range 14 Terrain Scan Range 16 Terrain Scan Density 10 ECM Strength 1 Armor Coverage 800 Evasion (%) 55 Targeting Accuracy 5 Recoil Reduction 2 Item Schematics ----------------- None Robot Schematics ------------------ None Fabricated ------------ Nothing Alien Tech Used ----------------- None Achievements -------------- None Challenges ------------ None Game ------ Seed StorageBombFacilitator Manual? 0 Play Time 01:07:41 Cumulative 6.7 hours Start 2024.06.09 @ 22:32:49 End 2024.06.09 @ 23:41:50 Sessions 1 Manual Loads 0 Difficulty Rogue Special Mode None Game No. 5 Rogue 5 Adventurer 0 Explorer 0 Win Type - Total 0 Types 0/0/0/0/0/0/0/0/0 Lore% 5 Gallery% 9 Achievement% 8 Wizard Run 0 Options --------- Layout 1 ASCII 0 Keyboard 0 Movement Numpad Keybinds 0 Fullscreen 1 Font 24/Smallcaps Map View 50x35 Zoom Use 0% Tactical HUD 0 Map Filters NONE Filters NONE Steam 1 RUN: 165f1995-a0cc-4814-b84c-d3734f1a1fbb